bitfinex/quotes_BTCUSD_20211001
["timestamp","ask_amount","ask_price","bid_price","bid_amount"]
[1633050688986,0.59651893,43512.0,43510.0,0.00022]
[1633050689987,0.53951893,43512.0,43510.0,0.00022]
[1633050690796,0.53951893,43512.0,43503.0,0.00022]
[1633050690797,0.160201,43509.0,43503.0,0.00022]
[1633050691091,0.46664637,43508.0,43503.0,0.00022]
[1633050691300,0.160201,43506.0,43500.0,0.00042]
[1633050691491,0.42524101,43508.0,43500.0,0.00042]
[1633050691492,0.23040769,43502.0,43500.0,0.00042]
[1633050691693,0.48503813,43502.0,43500.0,0.00042]
[1633050691897,0.229159,43498.0,43494.0,0.00064]
[1633050692094,0.16142943,43495.0,43494.0,0.00064]
[1633050692292,0.16142943,43495.0,43489.0,0.00086]
[1633050692293,0.44483401,43495.0,43489.0,0.00086]
[1633050692494,0.160201,43491.0,43489.0,0.00086]
[1633050692697,0.55454253,43490.0,43489.0,0.00086]
[1633050692894,0.56000117,43490.0,43489.0,0.00086]
[1633050693093,0.66000117,43490.0,43487.0,0.00064]
[1633050693298,0.229159,43486.0,43483.0,0.00014]
[1633050693495,0.16146189,43484.0,43483.0,0.00014]
[1633050693696,0.35686988,43484.0,43483.0,0.00014]
[1633050693894,0.45686988,43484.0,43483.0,0.00014]
[1633050694493,0.26146189,43484.0,43483.0,0.00014]
[1633050694696,0.26146189,43484.0,43483.0,0.18162948]
[1633050694894,0.26146189,43484.0,43483.0,0.00021365]
[1633050694895,0.6630484,43484.0,43483.0,0.00021365]
[1633050695899,0.47629189,43484.0,43483.0,0.19791032]
[1633050696095,0.72171089,43484.0,43483.0,0.19791032]
[1633050696296,0.72171089,43484.0,43483.0,0.29722839]
[1633050696495,0.90492873,43484.0,43483.0,0.19791032]
[1633050696708,0.19769032,43482.0,43478.0,0.00086]
[1633050696914,0.19769032,43482.0,43468.0,0.00086]
[1633050696915,0.2398644,43464.0,43462.0,3.00086]
[1633050697102,1.15728126,43464.0,43462.0,3.00086]
[1633050697406,1.1440745,43464.0,43462.0,2.541197]
[1633050697601,0.60222801,43463.0,43462.0,2.18181399]
[1633050697801,1.05952918,43463.0,43462.0,2.18181399]
[1633050698008,0.02173055,43463.0,43462.0,2.40501399]
[1633050698202,0.00153055,43463.0,43462.0,2.40626612]
[1633050698404,0.00153055,43463.0,43462.0,2.40001399]
[1633050698600,0.00153055,43463.0,43462.0,2.41021399]
[1633050698798,0.00153055,43463.0,43462.0,2.18701399]
[1633050698799,0.01653055,43463.0,43462.0,2.18701399]
[1633050699005,0.01653055,43463.0,43462.0,2.41617299]
[1633050700004,0.25101055,43463.0,43462.0,2.16681399]
[1633050700201,0.23780846,43463.0,43462.0,2.16681399]
[1633050700603,0.23654065,43463.0,43462.0,2.16681399]
[1633050700798,0.37054065,43463.0,43462.0,2.16681399]
[1633050701003,0.20507065,43463.0,43462.0,2.39424501]
[1633050701201,0.03553055,43463.0,43462.0,2.39424501]
[1633050701402,0.03553055,43463.0,43462.0,2.38424501]
[1633050701603,0.03553055,43463.0,43462.0,2.15681399]
[1633050702403,0.03553055,43463.0,43462.0,2.16402286]
[1633050702804,0.05553055,43463.0,43462.0,2.16402286]
[1633050703507,0.05553055,43463.0,43462.0,2.60917299]
[1633050704103,0.00153055,43463.0,43462.0,2.15681399]
[1633050704705,0.00153055,43463.0,43462.0,2.60917299]
[1633050704903,0.03153055,43463.0,43462.0,2.60917299]
[1633050705503,0.03153055,43463.0,43462.0,2.38010474]
[1633050705704,0.03153055,43463.0,43462.0,2.15690474]
[1633050706304,0.03153055,43463.0,43462.0,2.38010474]
[1633050706505,0.03153055,43463.0,43462.0,2.60926374]
[1633050706703,0.00153055,43463.0,43462.0,2.60926374]
[1633050706906,0.230155,43472.0,43464.0,0.27139495]
[1633050707110,0.15620046,43476.0,43472.0,0.19546223]
[1633050707111,0.15448979,43475.0,43472.0,0.19546223]
[1633050707310,1.23352376,43486.0,43476.0,0.12621025]
[1633050707311,0.23012376,43486.0,43476.0,0.12621025]
[1633050707509,0.00129229,43503.0,43476.0,1.52679212]
[1633050707510,0.345043,43489.0,43476.0,1.52679212]
[1633050707705,0.11510848,43489.0,43476.0,0.42679212]
[1633050707906,0.11510848,43489.0,43476.0,0.14641025]
[1633050707907,0.23009159,43483.0,43476.0,0.14641025]
[1633050708105,0.2786305,43482.0,43476.0,0.12621025]
[1633050708304,0.09745754,43477.0,43476.0,0.12621025]
[1633050708508,0.32534851,43477.0,43476.0,0.12621025]
[1633050708912,0.47532299,43477.0,43476.0,0.12621025]
[1633050709113,0.47532299,43477.0,43462.0,2.15690474]
[1633050709114,0.97630866,43477.0,43464.0,0.27139495]
[1633050709311,0.00129432,43471.0,43464.0,0.27139495]
[1633050709513,0.00124858,43465.0,43464.0,0.27139495]
[1633050709713,0.10511945,43461.0,43460.0,0.00086]
[1633050709912,0.10511945,43461.0,43458.0,0.00139372]
[1633050709913,1.56579699,43460.0,43458.0,0.00139372]
[1633050710110,0.66828513,43459.0,43452.0,0.00022]
[1633050710309,0.66828513,43459.0,43447.0,0.00042]
[1633050710310,0.18524611,43448.0,43447.0,0.00042]
[1633050710511,0.57515515,43448.0,43447.0,0.00042]
[1633050710713,0.57641804,43448.0,43447.0,0.00042]
[1633050710913,0.61515515,43448.0,43447.0,0.00042]
[1633050711110,0.388629,43448.0,43447.0,0.00042]
[1633050711915,0.045,43448.0,43447.0,0.22362]
[1633050712113,0.56617796,43461.0,43447.0,0.822979]
[1633050712114,0.56564786,43461.0,43447.0,0.822979]
[1633050712312,0.56564786,43461.0,43456.0,0.11255045]
[1633050712513,0.229159,43460.0,43456.0,0.11255045]
[1633050712713,0.00122941,43458.0,43451.0,0.23767479]
[1633050712912,0.3453,43456.0,43451.0,0.23767479]
[1633050713112,0.3453,43456.0,43452.0,0.00722026]
[1633050713511,0.229159,43455.0,43452.0,0.00722026]
[1633050713713,0.230248,43457.0,43452.0,0.09946929]
[1633050713914,0.230248,43457.0,43456.0,0.18760206]
[1633050714110,0.919845,43457.0,43456.0,0.18760206]
[1633050714313,0.919845,43457.0,43454.0,0.09702393]
[1633050714579,0.460406,43460.0,43454.0,0.09702393]
[1633050714713,0.00540978,43457.0,43454.0,0.09702393]
[1633050714915,0.05340978,43457.0,43452.0,0.30579815]
[1633050715315,0.05340978,43457.0,43455.0,0.23905013]
[1633050715515,0.574461,43456.0,43455.0,0.23905013]
[1633050715914,0.574461,43456.0,43455.0,0.33216143]
[1633050716116,0.229159,43456.0,43455.0,0.33216143]
[1633050716318,0.00540978,43457.0,43455.0,0.33216143]
[1633050716917,0.05340978,43457.0,43456.0,0.9934]
[1633050717121,0.05340978,43457.0,43456.0,1.22384388]
[1633050717122,0.04800978,43457.0,43456.0,1.22384388]
[1633050717420,0.00128269,43468.0,43458.0,1.05]
[1633050717618,0.00128827,43478.0,43458.0,1.05]
[1633050717619,0.00128827,43478.0,43467.0,0.10232477]
[1633050717817,0.00181837,43478.0,43468.0,0.2048236]
[1633050718017,0.229159,43474.0,43468.0,0.2048236]
[1633050718216,0.575484,43479.0,43471.0,0.0784852]
[1633050718420,0.229159,43478.0,43474.0,0.09631155]
[1633050718621,0.575484,43479.0,43478.0,0.20386824]
[1633050718816,0.575484,43479.0,43478.0,0.14900477]
[1633050718817,0.629484,43479.0,43478.0,0.14900477]
[1633050719020,0.054,43479.0,43478.0,0.22918095]
[1633050719219,0.054,43479.0,43478.0,0.249359]
[1633050719419,0.054,43479.0,43478.0,0.79301919]
[1633050719818,0.054,43479.0,43478.0,2.00601919]
[1633050720015,0.054,43479.0,43478.0,2.1885791]
[1633050720216,0.00409805,43479.0,43478.0,2.1885791]
[1633050720618,0.00409805,43479.0,43478.0,2.4117791]
[1633050720820,0.03609805,43479.0,43478.0,2.16640064]
[1633050721417,0.03609805,43479.0,43478.0,1.94320064]
[1633050721619,0.03609805,43479.0,43478.0,2.16640064]
[1633050721823,0.345037,43489.0,43479.0,1.15]
[1633050722024,0.46014,43491.0,43488.0,0.12236235]
[1633050722220,0.00127102,43498.0,43489.0,0.27619858]
[1633050722420,0.00127102,43498.0,43489.0,0.46327696]
[1633050722619,0.0999,43499.0,43489.0,0.46327696]
[1633050722822,0.0999,43499.0,43494.0,0.09836531]
[1633050722823,0.1509,43495.0,43494.0,0.09836531]
[1633050723019,0.1509,43495.0,43494.0,0.34462762]
[1633050723420,0.1509,43495.0,43494.0,0.24626231]
[1633050723822,0.1509,43495.0,43494.0,0.12953474]
[1633050723823,0.380059,43495.0,43494.0,0.12953474]
[1633050724219,0.329059,43495.0,43494.0,0.13898532]
[1633050724422,0.40778534,43495.0,43494.0,0.13898532]
[1633050724821,0.46378534,43495.0,43494.0,0.13898532]
[1633050725220,0.385059,43495.0,43494.0,0.13898532]
[1633050725625,0.15999655,43495.0,43494.0,0.12953474]
[1633050726222,0.10399655,43495.0,43494.0,0.12953474]
[1633050726620,0.44899755,43495.0,43494.0,0.12953474]
[1633050727027,0.72815655,43495.0,43494.0,0.14353474]
[1633050727824,0.49899755,43495.0,43494.0,0.14353474]
[1633050728421,0.44399755,43495.0,43494.0,0.12953474]
[1633050728625,0.09899655,43495.0,43494.0,0.12953474]
[1633050729023,0.15899655,43495.0,43494.0,0.12953474]
[1633050729423,0.15899655,43495.0,43494.0,0.14973474]
[1633050729687,0.1549,43495.0,43494.0,0.15918532]
[1633050730084,0.1549,43495.0,43494.0,0.52067485]
[1633050730286,0.0949,43495.0,43494.0,0.57763602]
[1633050730484,0.0949,43495.0,43494.0,0.80679502]
[1633050730884,0.0949,43495.0,43494.0,0.81379502]
[1633050730885,0.051,43495.0,43494.0,0.81379502]
[1633050731085,0.05509654,43495.0,43494.0,1.04141658]
[1633050731285,0.05509654,43495.0,43494.0,0.80434444]
[1633050731485,0.05509654,43495.0,43494.0,0.58246174]
[1633050731885,0.05509654,43495.0,43494.0,0.81500824]
[1633050732085,0.05509654,43495.0,43494.0,0.58246174]
[1633050732288,0.05509654,43495.0,43494.0,0.57546174]
[1633050732486,0.00409654,43495.0,43494.0,0.57546174]
[1633050732688,0.00409654,43495.0,43494.0,1.78846174]
[1633050732889,0.05909654,43495.0,43494.0,1.99807347]
[1633050734088,0.05909654,43495.0,43494.0,0.70823026]
[1633050734290,0.00409654,43495.0,43494.0,0.34953652]
[1633050734896,0.06209654,43495.0,43494.0,0.34953652]
[1633050735088,0.06209654,43495.0,43494.0,0.22981173]
[1633050735089,0.058,43495.0,43494.0,0.22981173]
[1633050735288,0.058,43495.0,43494.0,0.48315967]
[1633050735891,0.058,43495.0,43494.0,0.47315967]
[1633050736088,0.058,43495.0,43494.0,0.57277836]
[1633050736288,0.45998,43498.0,43494.0,0.25334794]
[1633050736491,0.2296891,43497.0,43495.0,0.0202]
[1633050736688,0.229159,43497.0,43495.0,0.0202]
[1633050736892,0.630143,43497.0,43495.0,0.0202]
[1633050737091,0.056,43497.0,43495.0,0.0202]
[1633050737293,0.056,43497.0,43496.0,0.09209332]
[1633050737493,0.056,43497.0,43496.0,0.11229332]
[1633050737691,0.056,43497.0,43496.0,0.30666824]
[1633050738093,0.056,43497.0,43496.0,0.0202]
[1633050738493,0.229159,43497.0,43496.0,0.0202]
[1633050738895,0.2826891,43497.0,43496.0,0.0202]
[1633050739091,0.2826891,43497.0,43496.0,0.26911709]
[1633050739293,0.282159,43497.0,43496.0,0.0202]
[1633050740291,0.229159,43497.0,43496.0,0.0202]
[1633050740491,0.229988,43498.0,43496.0,0.22079409]
[1633050740692,0.229988,43498.0,43496.0,0.23024128]
[1633050741092,0.271988,43498.0,43496.0,0.25924128]
[1633050741892,0.271988,43498.0,43496.0,0.05864719]
[1633050742091,0.271988,43498.0,43496.0,0.0492]
[1633050742092,0.00409631,43497.0,43496.0,0.0492]
[1633050742292,0.00409631,43497.0,43496.0,0.0202]
[1633050742892,0.04909631,43497.0,43496.0,0.0402]
[1633050744099,0.04909631,43497.0,43496.0,0.269359]
[1633050744296,0.04909631,43497.0,43496.0,0.36756853]
[1633050744899,0.09509631,43497.0,43496.0,0.40256853]
[1633050745097,0.09409631,43497.0,43496.0,0.40256853]
[1633050745303,0.09409631,43497.0,43496.0,0.0752]
[1633050746097,0.091,43497.0,43496.0,0.08514719]
[1633050746499,0.344954,43498.0,43496.0,0.02014719]
[1633050746900,0.3454841,43498.0,43496.0,0.02014719]
[1633050747098,0.3994841,43498.0,43496.0,0.04514719]
[1633050747300,0.398954,43498.0,43496.0,0.04514719]
[1633050747503,0.054,43498.0,43496.0,0.04514719]
[1633050747706,0.054,43498.0,43497.0,0.629159]
[1633050747907,0.054,43498.0,43497.0,0.249359]
[1633050748503,0.0948,43502.0,43501.0,0.19313703]
[1633050748904,0.0948,43502.0,43501.0,0.44252754]
[1633050749104,0.09149,43502.0,43501.0,0.47552754]
[1633050749320,0.06244968,43513.0,43505.0,0.32063063]
[1633050749513,0.84410196,43517.0,43506.0,0.42300255]
[1633050749711,1.0,43518.0,43513.0,0.29099796]
[1633050749712,0.06255494,43515.0,43513.0,0.29099796]
[1633050749911,0.09037386,43516.0,43513.0,0.29099796]
[1633050749912,0.06255673,43516.0,43514.0,0.24758373]
[1633050750107,1.06250488,43518.0,43515.0,0.22211582]
[1633050750307,0.229159,43517.0,43515.0,0.22211582]
[1633050750512,0.229159,43517.0,43516.0,0.2305788]
[1633050750708,0.229159,43517.0,43516.0,0.2507788]
[1633050751110,0.285159,43517.0,43516.0,0.2507788]
[1633050751707,0.285159,43517.0,43516.0,0.26069214]
[1633050751909,0.056,43517.0,43516.0,0.26069214]
[1633050752507,1.0,43518.0,43516.0,0.26069214]
[1633050752707,1.0,43518.0,43517.0,0.21752227]
[1633050753111,1.06509437,43518.0,43517.0,0.21752227]
[1633050754510,1.00409437,43518.0,43517.0,0.21752227]
[1633050754910,1.00409437,43518.0,43516.0,0.0202]
[1633050755113,0.2296891,43517.0,43516.0,0.0202]
[1633050755714,0.2296891,43517.0,43513.0,0.00031]
[1633050755911,0.32263122,43517.0,43513.0,0.00031]
[1633050756111,0.32263122,43517.0,43514.0,0.21843974]
[1633050756313,0.229159,43517.0,43514.0,0.21843974]
[1633050756717,0.229905,43516.0,43514.0,0.21843974]
[1633050757115,0.459811,43516.0,43514.0,0.24543974]
[1633050757314,0.919622,43516.0,43515.0,0.00991588]
[1633050757516,1.148781,43516.0,43515.0,0.00991588]
[1633050758516,1.148781,43516.0,43513.0,0.00031]
[1633050758717,0.50506,43515.0,43513.0,0.00031]
[1633050759117,0.50506,43515.0,43513.0,0.03431]
[1633050759719,0.0495,43514.0,43513.0,0.03431]
[1633050760316,0.0495,43514.0,43513.0,0.00031]
[1633050760924,0.278659,43514.0,43513.0,0.00031]
[1633050761119,0.318659,43514.0,43513.0,0.03331]
[1633050761919,0.269159,43514.0,43513.0,0.03331]
[1633050762521,0.229159,43514.0,43513.0,0.00031]
[1633050762722,0.229159,43514.0,43513.0,0.01022842]
[1633050762723,1.03843438,43514.0,43513.0,0.01022842]
[1633050762921,1.16063218,43514.0,43513.0,0.01022842]
[1633050763122,1.22163218,43514.0,43513.0,0.01022842]
[1633050763526,1.47654403,43514.0,43513.0,0.01022842]
[1633050763721,1.57427403,43514.0,43513.0,0.00557669]
[1633050764123,1.5787316,43514.0,43505.0,0.32063063]
[1633050764319,0.09334293,43506.0,43505.0,0.32063063]
[1633050765121,0.14034293,43506.0,43505.0,0.35863063]
[1633050765924,0.14034293,43506.0,43494.0,0.86199957]
[1633050765925,0.27538556,43505.0,43494.0,0.86199957]
[1633050766124,0.00124828,43495.0,43494.0,0.86199957]
[1633050766322,0.16057828,43495.0,43494.0,0.86199957]
[1633050766724,0.16057828,43495.0,43494.0,1.03901761]
[1633050766921,0.16057828,43495.0,43494.0,1.2596852]
[1633050766922,0.50564428,43495.0,43494.0,1.2596852]
[1633050767131,0.037,43495.0,43494.0,1.3016852]
[1633050767323,0.037,43495.0,43494.0,2.7438442]
[1633050767721,0.037,43495.0,43494.0,1.5308442]
[1633050767924,0.00121527,43508.0,43500.0,0.0899831]
[1633050768125,2.0,43525.0,43500.0,0.0899831]
[1633050768126,0.06221343,43515.0,43503.0,0.00125998]
[1633050768322,0.06221343,43515.0,43504.0,0.249359]
[1633050768527,0.7976,43517.0,43504.0,0.249359]
[1633050768726,0.7976,43517.0,43504.0,1.462359]
[1633050768925,0.7976,43517.0,43504.0,1.7012082]
[1633050769125,0.30238556,43505.0,43504.0,1.7532082]
[1633050769322,0.30238556,43505.0,43504.0,1.9764082]
[1633050769924,1.229941,43518.0,43505.0,1.33540246]
[1633050770130,1.34481,43518.0,43508.0,0.00128004]
[1633050770324,1.34481,43518.0,43509.0,0.0202]
[1633050770522,1.0,43518.0,43509.0,0.0202]
[1633050770923,1.07278685,43518.0,43514.0,0.23072225]
[1633050771123,0.229159,43517.0,43515.0,0.23737768]
[1633050771327,0.229159,43517.0,43515.0,0.0202]
[1633050771594,0.00181108,43516.0,43515.0,0.0202]
[1633050771726,0.16201208,43516.0,43515.0,0.0202]
[1633050771925,0.160201,43516.0,43515.0,0.0202]
[1633050773126,0.160201,43516.0,43515.0,0.0602]
[1633050773727,0.160201,43516.0,43515.0,0.06794417]
[1633050774731,0.160201,43516.0,43515.0,0.02794417]
[1633050774931,0.16466143,43516.0,43512.0,0.42418818]
[1633050775133,0.00446043,43516.0,43515.0,0.04]
[1633050775332,0.57844443,43516.0,43515.0,0.04]
[1633050776534,0.57844443,43516.0,43511.0,0.0202]
[1633050776834,0.57844443,43516.0,43505.0,0.29739274]
[1633050776835,0.16147572,43512.0,43505.0,0.18834855]
[1633050777037,0.00120721,43506.0,43505.0,0.18834855]
[1633050777235,0.1705838,43506.0,43505.0,0.18834855]
[1633050777433,0.51615055,43506.0,43505.0,0.18834855]
[1633050777634,0.3205838,43506.0,43505.0,0.18834855]
[1633050777834,0.3205838,43506.0,43494.0,0.86199957]
[1633050777835,0.76289181,43500.0,43494.0,0.86199957]
[1633050778037,0.00128135,43495.0,43494.0,0.66247031]
[1633050778234,0.10936135,43495.0,43494.0,0.66247031]
[1633050778835,0.10936135,43495.0,43494.0,0.87628556]
[1633050779037,0.45440535,43495.0,43494.0,0.87628556]
[1633050779236,0.45440535,43495.0,43494.0,0.92806528]
[1633050779237,0.10808,43495.0,43494.0,0.92806528]
[1633050779433,0.20186,43496.0,43494.0,0.92806528]
[1633050779434,0.14752,43496.0,43494.0,0.92806528]
[1633050779633,0.46132528,43501.0,43494.0,0.92806528]
[1633050779832,0.51132528,43501.0,43494.0,0.92806528]
[1633050780034,0.08222824,43500.0,43494.0,0.92806528]
[1633050780235,0.344964,43500.0,43498.0,0.09533365]
[1633050780438,0.344964,43500.0,43497.0,0.21546242]
[1633050780439,0.34939904,43500.0,43497.0,0.21546242]
[1633050780633,0.34939904,43500.0,43494.0,0.87628556]
[1633050781037,0.00443504,43500.0,43494.0,0.89648556]
[1633050781234,0.00443504,43500.0,43495.0,0.229159]
[1633050781434,0.00443504,43500.0,43495.0,0.344896]
[1633050781643,0.00443504,43500.0,43498.0,0.22912318]
[1633050782235,0.00443504,43500.0,43499.0,0.8732]
[1633050782435,0.00443504,43500.0,43499.0,1.56446306]
[1633050782634,0.00443504,43500.0,43499.0,2.77746306]
[1633050783234,0.00443504,43500.0,43499.0,2.83546306]
[1633050784035,3.504e-05,43500.0,43499.0,2.738426]
[1633050784433,3.504e-05,43500.0,43499.0,2.680426]
[1633050784635,0.18834855,43505.0,43499.0,2.030426]
[1633050784835,0.18834855,43505.0,43499.0,1.81719725]
[1633050785233,0.18834855,43505.0,43504.0,0.10491853]
[1633050785434,0.18834855,43505.0,43504.0,0.12511853]
[1633050786036,0.18834855,43505.0,43504.0,0.35193415]
[1633050786237,0.18834855,43505.0,43504.0,0.56804593]
[1633050786839,0.18834855,43505.0,43504.0,0.34123031]
[1633050787039,0.18834855,43505.0,43504.0,0.23631178]
[1633050787645,0.18834855,43505.0,43504.0,0.29131178]
[1633050788236,0.18834855,43505.0,43504.0,0.39271303]
[1633050789035,0.18834855,43505.0,43504.0,0.33771303]
[1633050789236,0.18834855,43505.0,43504.0,0.39271303]
[1633050789636,0.18834855,43505.0,43504.0,0.29131178]
[1633050789838,0.18834855,43505.0,43504.0,0.0752]
[1633050790038,0.41750755,43505.0,43504.0,0.0752]
[1633050790236,0.41750755,43505.0,43504.0,0.08270888]
[1633050790435,0.41750755,43505.0,43504.0,0.02770888]
[1633050791036,0.41750755,43505.0,43504.0,0.26566844]
[1633050791235,0.41750755,43505.0,43504.0,0.31266844]
[1633050791236,0.45550755,43505.0,43504.0,0.31266844]
[1633050791435,0.22634855,43505.0,43504.0,0.30515956]
[1633050791636,0.45550755,43505.0,43504.0,0.30515956]
[1633050792436,0.41750755,43505.0,43504.0,0.25815956]
[1633050793291,0.46050755,43505.0,43504.0,0.30115956]
[1633050793496,0.46050755,43505.0,43504.0,0.0632]
[1633050793895,0.46103765,43505.0,43504.0,0.0632]
[1633050794094,0.46103765,43505.0,43504.0,0.064211]
[1633050794296,0.46050755,43505.0,43504.0,0.064211]
[1633050794503,0.46050755,43505.0,43504.0,0.021211]
[1633050794504,0.41750755,43505.0,43504.0,0.021211]
[1633050794701,0.41750755,43505.0,43504.0,0.23735962]
[1633050795297,0.46050755,43505.0,43504.0,0.28035962]
[1633050795698,0.46050755,43505.0,43504.0,0.2878685]
[1633050795900,0.46050755,43505.0,43504.0,0.07171988]
[1633050795901,0.46175715,43505.0,43504.0,0.07171988]
[1633050796101,0.46175715,43505.0,43504.0,0.05151988]
[1633050796102,0.66143412,43505.0,43504.0,0.05151988]
[1633050796304,2.64584996,43505.0,43504.0,0.05151988]
[1633050796898,2.71988938,43505.0,43504.0,0.044011]
[1633050797100,2.67688938,43505.0,43504.0,0.001011]
[1633050797304,2.64284996,43505.0,43504.0,0.043011]
[1633050797701,2.49284996,43505.0,43504.0,0.043011]
[1633050797902,2.49284996,43505.0,43504.0,0.01380645]
[1633050798303,2.57130131,43505.0,43504.0,0.01380645]
[1633050798503,2.53130131,43505.0,43499.0,0.24903457]
[1633050798704,0.344941,43502.0,43499.0,0.24903457]
[1633050798904,2.03356271,43501.0,43499.0,0.24903457]
[1633050799305,2.03356271,43501.0,43499.0,0.30503457]
[1633050800105,0.229159,43500.0,43499.0,0.30503457]
[1633050800506,0.344941,43502.0,43499.0,0.24903457]
[1633050800707,2.03356271,43501.0,43499.0,0.24903457]
[1633050800907,0.229159,43500.0,43499.0,0.24903457]
[1633050801309,0.381948,43501.0,43499.0,0.29603457]
[1633050801508,2.03356271,43500.0,43499.0,0.29603457]
[1633050802507,2.03784869,43500.0,43499.0,0.29603457]
[1633050802706,0.00428598,43500.0,43499.0,0.24903457]
[1633050803306,0.00828598,43500.0,43499.0,2.54657066]
[1633050805313,0.04528598,43500.0,43499.0,2.59257066]
[1633050805507,0.04128598,43500.0,43499.0,2.52957066]
[1633050806309,0.00428598,43500.0,43499.0,2.48357066]
[1633050806511,0.00428598,43500.0,43499.0,2.71272966]
[1633050806709,0.344919,43504.0,43499.0,0.25655082]
[1633050806908,2.03356271,43503.0,43499.0,0.25655082]
[1633050807107,0.229159,43502.0,43500.0,0.11912851]
[1633050807308,2.03356271,43501.0,43500.0,0.11912851]
[1633050807908,2.03785008,43501.0,43500.0,0.11912851]
[1633050808108,2.03785008,43501.0,43499.0,0.29503457]
[1633050808310,2.03356271,43500.0,43499.0,0.29503457]
[1633050808509,2.26272171,43500.0,43499.0,0.29503457]
[1633050808712,0.229159,43500.0,43499.0,0.29503457]
[1633050808909,0.00428737,43501.0,43499.0,0.29503457]
[1633050809108,2.03356271,43500.0,43499.0,0.29503457]
[1633050809308,2.29472171,43500.0,43499.0,0.34303457]
[1633050809512,0.261159,43500.0,43499.0,2.68755377]
[1633050809712,0.032,43500.0,43499.0,0.34303457]
[1633050810111,0.032,43500.0,43499.0,0.094]
[1633050810519,0.0325301,43500.0,43499.0,0.094]
[1633050810711,0.0005301,43500.0,43494.0,0.79828526]
[1633050810913,0.344988,43498.0,43494.0,0.79828526]
[1633050811111,0.344988,43498.0,43495.0,0.24331565]
[1633050811516,0.00428737,43501.0,43495.0,0.24331565]
[1633050811716,2.03356271,43500.0,43498.0,0.08749358]
[1633050811915,2.37851071,43500.0,43495.0,0.24331565]
[1633050812115,0.344948,43500.0,43496.0,0.22476957]
[1633050812314,0.344948,43500.0,43496.0,0.23228827]
[1633050813113,0.344948,43500.0,43496.0,0.0075187]
[1633050813314,0.344948,43500.0,43496.0,0.0705187]
[1633050813315,0.347948,43500.0,43496.0,0.0705187]
[1633050813515,0.00428398,43499.0,43496.0,0.063]
[1633050814515,0.00428398,43499.0,43495.0,0.24331565]
[1633050815318,0.00428398,43499.0,43495.0,0.30531565]
[1633050815526,0.00428398,43499.0,43496.0,0.229159]
[1633050815923,0.00428398,43499.0,43495.0,0.30531565]
[1633050816725,0.00428398,43499.0,43495.0,0.24331565]
[1633050817127,0.00428398,43499.0,43497.0,0.2232]
[1633050817330,0.18834855,43505.0,43503.0,0.09409438]
[1633050817527,0.18834855,43505.0,43504.0,0.4804744]
[1633050817926,0.18834855,43505.0,43504.0,1.9201797]
[1633050818130,0.18834855,43505.0,43504.0,2.00623368]
[1633050818327,0.18834855,43505.0,43504.0,2.44240013]
[1633050818929,0.18834855,43505.0,43504.0,2.21128473]
[1633050819327,0.18834855,43505.0,43504.0,2.27028473]
[1633050819527,0.18834855,43505.0,43504.0,2.04708473]
[1633050820737,0.18834855,43505.0,43504.0,2.21251072]
[1633050821328,0.18834855,43505.0,43504.0,2.27651072]
[1633050821731,0.18334855,43505.0,43504.0,2.27651072]
[1633050821931,0.18334855,43505.0,43504.0,0.83908473]
[1633050822331,0.18334855,43505.0,43504.0,2.05208473]
[1633050823135,0.18334855,43505.0,43504.0,1.9977356]
[1633050823334,0.18334855,43505.0,43504.0,2.0607356]
[1633050824333,0.18334855,43505.0,43504.0,2.05108473]
[1633050825134,0.18334855,43505.0,43504.0,1.98808473]
[1633050825334,0.18334855,43505.0,43504.0,2.05208473]
[1633050826534,0.18334855,43505.0,43504.0,1.98808473]
[1633050827334,0.18334855,43505.0,43504.0,2.05208473]
[1633050828335,0.18334855,43505.0,43504.0,1.96603075]
[1633050828540,0.18334855,43505.0,43504.0,0.75303075]
[1633050828735,0.18334855,43505.0,43504.0,0.69868162]
[1633050829340,0.18334855,43505.0,43504.0,0.76168162]
[1633050829936,0.18334855,43505.0,43504.0,0.75203075]
[1633050830737,0.18334855,43505.0,43504.0,0.68903075]
[1633050830940,0.18334855,43505.0,43504.0,0.90203753]
[1633050831144,0.18334855,43505.0,43504.0,0.68903075]
[1633050831339,0.18334855,43505.0,43504.0,2.17614701]
[1633050832340,1.00124129,43518.0,43505.0,0.1831832]
[1633050832547,1.0,43518.0,43517.0,0.10150599]
[1633050832742,1.229159,43518.0,43517.0,0.29917453]
[1633050832948,1.0,43518.0,43517.0,0.31937453]
[1633050833143,1.0,43518.0,43517.0,1.53237453]
[1633050833342,1.0,43518.0,43517.0,1.80881792]
[1633050833543,1.0,43518.0,43517.0,0.5175773]
[1633050833746,1.0,43518.0,43517.0,0.2805608]
[1633050833941,1.0,43518.0,43517.0,0.0572]
[1633050834140,1.0,43518.0,43517.0,0.06682879]
[1633050834605,1.42144962,43518.0,43517.0,0.04662879]
[1633050834745,1.65060862,43518.0,43517.0,0.00962879]
[1633050834944,1.65113872,43518.0,43517.0,0.00962879]
[1633050835341,1.65113872,43518.0,43517.0,0.034]
[1633050835542,1.65523307,43518.0,43517.0,0.034]
[1633050836749,1.65523307,43518.0,43509.0,0.2304136]
[1633050836945,1.42607407,43518.0,43509.0,0.2304136]
[1633050837149,0.0005301,43517.0,43509.0,0.2304136]
[1633050837344,0.344857,43513.0,43509.0,0.2904136]
[1633050838549,0.00122825,43510.0,43509.0,0.06]
[1633050838749,0.00122825,43510.0,43505.0,0.1831832]
[1633050838750,0.289851,43507.0,43505.0,0.1831832]
[1633050838954,0.21168397,43506.0,43505.0,0.1831832]
[1633050839146,0.26168397,43506.0,43505.0,0.1831832]
[1633050839346,0.26168397,43506.0,43505.0,0.0908832]
[1633050839347,0.36168397,43506.0,43505.0,0.0908832]
[1633050839549,0.36168397,43506.0,43494.0,0.66247031]
[1633050839550,0.00126401,43497.0,43494.0,0.66247031]
[1633050839752,0.00251509,43495.0,43494.0,0.66247031]
[1633050839951,0.60633384,43495.0,43494.0,0.66247031]
[1633050840147,0.65633384,43495.0,43494.0,0.66247031]
[1633050840549,0.74956824,43495.0,43481.0,0.00031]
[1633050840747,0.74956824,43495.0,43483.0,0.18963108]
[1633050840748,0.05221,43489.0,43483.0,0.18963108]
[1633050840949,0.46014,43489.0,43483.0,0.18963108]
[1633050841349,0.49114,43489.0,43483.0,0.24463108]
[1633050841749,0.49114,43489.0,43488.0,0.10954757]
[1633050841945,0.031,43489.0,43488.0,0.10954757]
[1633050842746,0.345051,43490.0,43488.0,0.10954757]
[1633050843347,0.393051,43490.0,43488.0,0.15554757]
[1633050843749,0.15658507,43495.0,43490.0,0.8]
[1633050843750,0.05711517,43495.0,43490.0,0.8]
[1633050843950,0.00409651,43495.0,43493.0,0.00129071]